Cogmind - Beta 14 @@@ ROGUE MODE // 2024.09.10 @ 20:56:29 Player: rice Result: Destroyed by S-43 Plague with Heavy Machine Gun Performance ------------- Evolutions (7) 3500 Regions Visited (17) 3400 Robots Destroyed (36) 180 Value Destroyed (1094) 1094 Prototype IDs (26) 520 Alien Tech Used (0) 0 Bonus (300) 300 TOTAL SCORE: 8994 Bonus ------- Aligned with FarCom 300 Cogmind --------- Core Integrity 0/1300 Matter 248/300 Energy 98/100 System Corruption 1% Temperature Cool (0) Movement Core (50) Location -3/Research Parts ------- > --- POWER (3) -------- (None) > --- PROPULSION (6) --- (None) > --- UTILITY (10) ----- (None) > --- WEAPON (2) ------- (None) > --- INVENTORY (5) ---- Nuclear Core Nuclear Core Cryofiber Web ECM Suite Advanced Phase Shifter Peak State ------------ > --- POWER ------------ Micro Fission Core Improved Fusion Compressor > --- PROPULSION ------- Xenon Bombardment Thruster Nuclear Pulse Thruster Flying Fortress v7 > --- UTILITY ---------- Improved Heat Sink Large Storage Unit Advanced Cloaking Device Improved Utility Shielding Improved Light Armor Plating Layered Medium Armor Plating Reflective Plating System Shield > --- WEAPON ----------- Greatsword > --- INVENTORY -------- Nuclear Core Nuclear Core Nuclear Core Micro Nuclear Core Xenon Bombardment Thruster Cryofiber Web Improved Actuator Array Advanced Phase Shifter System Restoration Module Recalibrator Thermic Laser Mining Laser [Rating: 96] Favorites ----------- Power Improved Ion Engine Engine Improved Ion Engine Power Core Nuclear Core Reactor Light Particle Reactor Propulsion Light Treads Treads Light Treads Hover Unit Gravmag Array Flight Unit Flying Fortress v7 Utility Large Storage Unit Device Heat Sink Storage Large Storage Unit Processor Improved Targeting Computer Hackware System Shield Protection Improved Light Armor Plating Weapon Heavy Assault Rifle Energy Gun Precision Shock Rifle Ballistic Gun Heavy Assault Rifle Special Weapon Mining Laser Slashing Weapon Greatsword Build | -11 -10 -9 -9 -9 -8 -8 -7 -7 -7 -6 -5 -4 -4 -4 -4 -4 -3 ------- Run | Yrd Mat Mat Min Exi Min Mat Fac Was Fac Fac Fac Fac Was Fac Upp Upp Res Slots Evolved 14 | . . 2 . . . 2 2 . . 2 2 2 . . . . 2 Power 2 | . . . . . . . . . . 1 . . . . . . 1 Propulsion 4 | . . . . . . 2 . . . 1 1 . . . . . . Utility 8 | . . 2 . . . . 2 . . . 1 2 . . . . 1 Weapon . | . . . . . . . . . . . . . . . . . . Parts Attached 79 | 6 3 16 2 2 . 8 3 . 3 13 5 3 1 7 2 . 5 Power 15 | 1 . 3 . . . 1 1 . . 2 2 . . 3 . . 2 Engine 5 | 1 . 3 . . . 1 . . . . . . . . . . . Core 9 | . . . . . . . 1 . . 2 2 . . 3 . . 1 Reactor 1 | . . . . . . . . . . . . . . . . . 1 Propulsion 17 | 2 . 4 . 2 . 1 . . . 2 2 1 . 1 . . 2 Treads 8 | 2 . 4 . 2 . . . . . . . . . . . . . Leg . | . . . . . . . . . . . . . . . . . . Wheel . | . . . . . . . . . . . . . . . . . . Hover 1 | . . . . . . . . . . . . . . . . . 1 Flight 8 | . . . . . . 1 . . . 2 2 1 . 1 . . 1 Utility 30 | 1 3 4 2 . . 2 2 . 2 6 1 2 1 3 . . 1 Device 9 | . 1 . 1 . . . 1 . 1 . 1 . 1 3 . . . Storage 3 | 1 2 . . . . . . . . . . . . . . . . Processor 2 | . . . . . . . 1 . 1 . . . . . . . . Hackware 2 | . . . . . . . . . . 1 . . . . . . 1 Protection 14 | . . 4 1 . . 2 . . . 5 . 2 . . . . . Artifact . | . . . . . . . . . . . . . . . . . . Weapon 17 | 2 . 5 . . . 4 . . 1 3 . . . . 2 . . Energy Gun 2 | . . . . . . . . . 1 1 . . . . . . . Energy Cannon . | . . . . . . . . . . . . . . . . . . Ballistic Gun 11 | 2 . 5 . . . 3 . . . . . . . . 1 . . Ballistic Cannon . | . . . . . . . . . . . . . . . . . . Launcher . | . . . . . . . . . . . . . . . . . . Special Weapon 2 | . . . . . . 1 . . . . . . . . 1 . . Impact Weapon . | . . . . . . . . . . . . . . . . . . Slashing Weapon 2 | . . . . . . . . . . 2 . . . . . . . Piercing Weapon . | . . . . . . . . . . . . . . . . . . Special Melee Weapon . | . . . . . . . . . . . . . . . . . . Unidentified Prototypes 3 | . . . . . . . . . 1 1 . . . . . . 1 Parts Lost 20 | . . 3 2 . . . . . . 5 2 . . 1 4 . 3 Power 2 | . . 1 . . . . . . . . 1 . . . . . . Propulsion 5 | . . . . . . . . . . 1 . . . . 2 . 2 Utility 9 | . . 1 2 . . . . . . 3 1 . . . 1 . 1 Weapon 4 | . . 1 . . . . . . . 1 . . . 1 1 . . Highest Loss Streak 3 | . . 3 1 . . . . . . 3 1 . . 1 2 . 2 To Critical Strikes 1 | . . . . . . . . . . . . . . . . . 1 Average Slot Usage (%) 77 | . 87 92 94 88 88 71 69 76 75 74 75 69 78 76 46 . 2 Engine 5 | . 14 11 11 11 11 9 . . . . . . . . . . . Core 4 | . . . . . . . 6 7 7 11 10 10 10 10 6 . . Treads 10 | . 28 22 22 22 22 . . . . . . . . . . . . Flight 5 | . . . . . . 9 7 7 7 12 17 15 15 15 7 . 1 Device 5 | . 1 1 9 11 11 9 10 15 7 . 5 5 10 13 9 . . Storage 8 | . 14 11 11 11 11 9 7 7 7 6 5 5 5 5 3 . . Processor 2 | . . . . . . . 4 7 14 10 5 5 5 . . . . Hackware 1 | . . . . . . . . . . 5 5 5 5 5 3 . . Protection 15 | . . 24 19 11 11 17 15 15 15 16 16 17 21 21 12 . . Energy Gun 1 | . . . . . . . . . 6 6 . . . . . . . Ballistic Gun 12 | . 28 21 22 22 22 16 15 15 7 . . . . . 2 . . Slashing Weapon 1 | . . . . . . . . . . 2 5 5 5 4 . . . Peak Build Rating 96 | 6 7 18 18 16 16 48 56 56 62 73 83 84 94 96 88 2 17 Average Rating 39 | 4 6 14 15 14 16 46 52 56 60 70 80 82 93 92 53 2 6 On Entrance 39 | . 6 7 18 13 16 16 48 56 56 58 73 80 84 94 84 2 2 Naked Turns 262 | . . . . . . . . . . . . . . . 133 56 73 Heaviest Build 57 | 13 29 42 42 35 35 40 43 43 43 52 53 55 56 57 56 . . Greatest Support 62 | 40 40 40 40 40 40 50 50 50 50 56 62 62 62 62 56 3 20 Greatest Overweight (x) 1 | . . 1 1 . . . . . . . . . . 1 1 . . Average Overweight (x) . | . . . . . . . . . . . . . . . . . . Largest Inventory Capacity 15 | 8 15 15 15 15 15 15 15 15 15 15 15 15 15 15 15 5 5 Average Capacity 14 | 7 13 15 15 15 15 15 15 15 15 15 15 15 15 15 11 5 5 Most Carried 15 | 1 2 13 13 15 15 15 14 14 15 15 14 14 11 12 11 5 5 Average Carried 9 | . 1 6 13 13 15 8 11 14 14 11 11 11 10 11 8 5 4 Final Capacity 15 | 8 15 15 15 15 15 15 15 15 15 15 15 15 15 15 5 5 5 Final Carried 15 | 1 1 13 13 15 15 12 14 14 15 12 14 10 11 11 5 5 5 Class Distribution -------------------- 69% | Mutant 28% | Scavenger-Mutant Dominant Class ---------------- Mutant | -10/Materials Scavenger-Mutant | -9/Materials Scavenger-Mutant | -9/Mines Scavenger-Mutant | -9/Exiles Mutant | -8/Mines Mutant | -8/Materials Mutant | -7/Factory Mutant | -7/Waste Mutant | -7/Factory Mutant | -6/Factory Mutant | -5/Factory Mutant | -4/Factory Mutant | -4/Waste Mutant | -4/Factory Mutant | -4/Upper Caves Mutant | -4/Upper Caves Mutant | -3/Research Resources | -11 -10 -9 -9 -9 -8 -8 -7 -7 -7 -6 -5 -4 -4 -4 -4 -4 -3 ----------- Run | Yrd Mat Mat Min Exi Min Mat Fac Was Fac Fac Fac Fac Was Fac Upp Upp Res Matter Collected 1219 | 178 144 159 291 . . 50 . . . 205 70 30 . . 92 . . Remotely . | . . . . . . . . . . . . . . . . . . Salvage Created 1463 | . 235 320 431 . . 50 . . . 279 70 78 . . . . . Parts 73 | . 7 23 22 . . 5 . . . 15 . 1 . . . . . Haulers Intercepted . | . . . . . . . . . . . . . . . . . . Recyclers Shooed 1 | . . . . . . . . . . . . 1 . . . . . Parts Field Recycled . | . . . . . . . . . . . . . . . . . . Retrieved Matter . | . . . . . . . . . . . . . . . . . . Parts Self-Destructed . | . . . . . . . . . . . . . . . . . . Prevented . | . . . . . . . . . . . . . . . . . . Kills | -11 -10 -9 -9 -9 -8 -8 -7 -7 -7 -6 -5 -4 -4 -4 -4 -4 -3 ------- Run | Yrd Mat Mat Min Exi Min Mat Fac Was Fac Fac Fac Fac Was Fac Upp Upp Res Combat Hostiles Destroyed 28 | . 5 5 12 . . 1 . . . 3 1 1 . . . . . Melee 3 | . . . . . . . . . . 1 1 1 . . . . . Guns 23 | . 5 5 12 . . 1 . . . . . . . . . . . AOE 1 | . . . . . . . . . . 1 . . . . . . . Classes Destroyed 10 | . 2 2 2 . . . . . . 4 . . . . . . . Worker 2 | . . . . . . . . . . 2 . . . . . . . Builder 3 | . . . . . . . . . . 3 . . . . . . . Recycler 2 | . . 1 1 . . . . . . . . . . . . . . Operator 1 | . 1 . . . . . . . . . . . . . . . . Swarmer 7 | . . . 7 . . . . . . . . . . . . . . Grunt 9 | . 5 . 4 . . . . . . . . . . . . . . Duelist 1 | . . . 1 . . . . . . . . . . . . . . Sentry 8 | . . 5 . . . 1 . . . . 1 1 . . . . . Hunter 2 | . . . . . . . . . . 2 . . . . . . . Programmer 1 | . . . . . . . . . . 1 . . . . . . . Best Kill Streak 6 | . 2 2 6 . . 1 . . . 2 1 1 . . . . . Combat Bots Only 5 | . 2 1 5 . . 1 . . . 1 1 1 . . . . . Max Kills in Single Turn 2 | . 1 1 1 . . 1 . . . 2 1 1 . . . . . Gunslinging . | . . . . . . . . . . . . . . . . . . Exploded 1 | . . . . . . . . . . 1 . . . . . . . Melee 1 | . . . . . . . . . . 1 1 1 . . . . . Uniques/NPCs Destroyed . | . . . . . . . . . . . . . . . . . . Combat | -11 -10 -9 -9 -9 -8 -8 -7 -7 -7 -6 -5 -4 -4 -4 -4 -4 -3 -------- Run | Yrd Mat Mat Min Exi Min Mat Fac Was Fac Fac Fac Fac Was Fac Upp Upp Res Hostile Shots Fired 511 | . 22 46 53 . . 4 . 1 . 74 17 13 . 30 129 . 122 Missed 198 | . 9 9 14 . . 1 . 1 . 23 3 3 . 13 73 . 49 Damage Taken 6345 | . 167 540 557 . . 42 . . . 996 823 233 . 317 1101 . 1569 Core 2288 | . 67 69 89 . . . . . . 112 78 . . 31 528 . 1314 Absorbed by Shields . | . . . . . . . . . . . . . . . . . . Redirected to Shielding 195 | . . . 4 . . . . . . 182 . . . . 9 . . Ignored by Resistances 53 | . . . . . . . . . . . . 2 . . 51 . . Regen/Repaired (Parts) 107 | . . . . . . . . . . 107 . . . . . . . Core Remaining (%) 82 | 100 73 . . . 60 100 . . 100 86 92 . . . . 51 . Volleys Fired 99 | . 16 24 32 . . 11 . . . 12 . . . . 4 . . Largest 2 | . 2 2 2 . . 2 . . . 2 . . . . 1 . . Hottest 130 | . 40 46 46 . . 100 . . . 130 . . . . 100 . . Shots Fired 168 | . 32 36 64 . . 15 . . 1 16 . . . . 4 . . Gun 157 | . 32 36 64 . . 8 . . 1 16 . . . . . . . Cannon . | . . . . . . . . . . . . . . . . . . Launcher . | . . . . . . . . . . . . . . . . . . Special 11 | . . . . . . 7 . . . . . . . . 4 . . Kinetic 141 | . 32 36 64 . . 8 . . 1 . . . . . . . . Thermal 23 | . . . . . . 7 . . . 12 . . . . 4 . . Explosive . | . . . . . . . . . . . . . . . . . . Electromagnetic 4 | . . . . . . . . . . 4 . . . . . . . Robot Hit Streak 20 | . 10 19 20 . . 7 . . . 6 . . . . . . . Robot Miss Streak 2 | . 2 1 1 . . 1 . . . 2 . . . . . . . Penetration Max . | . . . . . . . . . . . . . . . . . . Secondary Targets 1 | . . . 1 . . . . . . . . . . . . . . Max Gunslinging Chain 1 | . . . 1 . . . . . . . . . . . . . . Shots Hit Robots 139 | . 23 31 48 . . 6 . . . 19 5 7 . . . . . Core Hits 58 | . 12 12 18 . . 2 . . . 8 2 2 . . . . 2 Critical Kills . | . . . . . . . . . . . . . . . . . . Critical Parts Destroyed . | . . . . . . . . . . . . . . . . . . Critical Strikes 6 | . . . . . . . . . . 1 2 3 . . . . . Burn 1 | . . . . . . . . . . 1 . . . . . . . Sever 5 | . . . . . . . . . . . 2 3 . . . . . Melee Attacks 75 | . . . . . . . . . . 23 32 20 . . . . . Impact . | . . . . . . . . . . . . . . . . . . Slashing 75 | . . . . . . . . . . 23 32 20 . . . . . Piercing . | . . . . . . . . . . . . . . . . . . Sneak Attacks 5 | . . . . . . . . . . 4 . 1 . . . . . Combat Hostiles . | . . . . . . . . . . . . . . . . . . Follow-up Attacks . | . . . . . . . . . . . . . . . . . . Damage Inflicted 3105 | . 230 367 789 . . 81 . . . 949 251 406 . . . . 32 Guns 1680 | . 230 357 753 . . 81 . . . 259 . . . . . . . Cannons . | . . . . . . . . . . . . . . . . . . Explosions 101 | . . . . . . . . . . 101 . . . . . . . Melee 1246 | . . . . . . . . . . 589 251 406 . . . . . Ramming 78 | . . 10 36 . . . . . . . . . . . . . 32 Kinetic 1421 | . 230 357 753 . . 81 . . . . . . . . . . . Thermal 277 | . . . . . . . . . . 277 . . . . . . . Explosive . | . . . . . . . . . . . . . . . . . . Electromagnetic 83 | . . . . . . . . . . 83 . . . . . . . Impact . | . . . . . . . . . . . . . . . . . . Slashing 1246 | . . . . . . . . . . 589 251 406 . . . . . Piercing . | . . . . . . . . . . . . . . . . . . Highest Corruption 9 | . . . . . . . . 5 5 7 . . 7 9 5 5 1 Average Corruption 5 | . . . . . . . . 5 3 5 . . 7 5 5 5 1 Corruption Purged 10 | . . . . . . . . . 5 . . . . 5 . . . Corruption Blocked . | . . . . . . . . . . . . . . . . . . Effects 34 | . . . . . . . . 2 4 7 . . 1 11 8 1 . Message Errors 6 | . . . . . . . . . . 2 . . . 1 3 . . Matter Fused 8 | . . . . . . . . . . 3 . . . 3 2 . . Heat Flow Errors 8 | . . . . . . . . . 2 1 . . . 3 2 . . Energy Discharges 3 | . . . . . . . . 2 . . . . . 1 . . . Parts Rejected 1 | . . . . . . . . . . . . . . 1 . . . Data Loss (minor) 5 | . . . . . . . . . . 1 . . . 2 1 1 . Data Loss (major) 1 | . . . . . . . . . . . . . 1 . . . . Misfires 1 | . . . . . . . . . 1 . . . . . . . . Alerts 1 | . . . . . . . . . 1 . . . . . . . . Overload Shots . | . . . . . . . . . . . . . . . . . . Overflow Damage 146 | . . . . . . . . . . 142 4 . . . . . . Projectiles . | . . . . . . . . . . . . . . . . . . Explosions . | . . . . . . . . . . . . . . . . . . Melee 146 | . . . . . . . . . . 142 4 . . . . . . Knockbacks 1 | . . 1 . . . . . . . . . . . . . . . Impact 1 | . . 1 . . . . . . . . . . . . . . . Kinetic . | . . . . . . . . . . . . . . . . . . Secondary . | . . . . . . . . . . . . . . . . . . Self-Inflicted Damage 14 | . . . . . . . . . . . . . . . . . 14 Shots . | . . . . . . . . . . . . . . . . . . Rammed 15 | . . 2 4 . . . . . . . . . . . . 1 8 Targets Rammed 16 | . . 3 4 . . . . . . . . . . . . 1 8 Kicked . | . . . . . . . . . . . . . . . . . . Crushed 1 | . . 1 . . . . . . . . . . . . . . . Highest Temperature 382 | . 9 27 48 . . 32 . . 190 382 . . . 247 279 . . Average Temperature 110 | . 6 16 26 . . 9 . . 85 155 . . . 100 122 . . Received Heat Transfer 751 | . 90 189 108 . . 18 . . . 9 36 36 . . 247 . 18 Effects 6 | . . . . . . . . . . 6 . . . . . . . Energy Bleed 2 | . . . . . . . . . . 2 . . . . . . . Interference 4 | . . . . . . . . . . 4 . . . . . . . Siege Activations . | . . . . . . . . . . . . . . . . . . Robots Corrupted . | . . . . . . . . . . . . . . . . . . Combat Hostiles . | . . . . . . . . . . . . . . . . . . Parts Fried 1 | . . . . . . . . . . 1 . . . . . . . Impact Corruptions . | . . . . . . . . . . . . . . . . . . Robots Melted 1 | . . . . . . . . . . 1 . . . . . . . Combat Hostiles 1 | . . . . . . . . . . 1 . . . . . . . Parts Melted . | . . . . . . . . . . . . . . . . . . Heat Transferred 550 | . . . . . . . . . . 550 . . . . . . . Parts Sabotaged . | . . . . . . . . . . . . . . . . . . Parts Stolen . | . . . . . . . . . . . . . . . . . . Parts Stripped . | . . . . . . . . . . . . . . . . . . Power Chain Reactions 1 | . . . . . . . . . . 1 . . . . . . . Alert | -11 -10 -9 -9 -9 -8 -8 -7 -7 -7 -6 -5 -4 -4 -4 -4 -4 -3 ------- Run | Yrd Mat Mat Min Exi Min Mat Fac Was Fac Fac Fac Fac Was Fac Upp Upp Res Peak Influence 472 | . 120 150 245 . . 161 9 18 42 78 119 122 42 64 . . 472 Initial 252 | . . 27 58 . . . 9 3 12 20 4 53 42 29 . . 252 Average 77 | . 57 66 121 . . 85 9 14 25 42 48 100 42 34 . . 327 Maximum Alert Level 2 | . . . 1 . . . . . . . . . . . . . 2 Low Security (%) 95 | 100 100 100 97 . 100 100 100 100 100 100 100 100 100 100 . . . Level 1 3 | . . . 2 . . . . . . . . . . . . . 77 Level 2 . | . . . . . . . . . . . . . . . . . 22 Level 3 . | . . . . . . . . . . . . . . . . . . Level 4 . | . . . . . . . . . . . . . . . . . . Level 5 . | . . . . . . . . . . . . . . . . . . High Security . | . . . . . . . . . . . . . . . . . . Max Security . | . . . . . . . . . . . . . . . . . . Squads Dispatched 11 | . 2 . . . . 1 . . 1 3 1 1 . . . . 2 Investigation 1 | . 1 . . . . . . . . . . . . . . . . Extermination 4 | . . . . . . . . . 1 2 . 1 . . . . . Reinforcement 6 | . 1 . . . . 1 . . . 1 1 . . . . . 2 Assault . | . . . . . . . . . . . . . . . . . . Garrison . | . . . . . . . . . . . . . . . . . . Intercept . | . . . . . . . . . . . . . . . . . . Searches Triggered . | . . . . . . . . . . . . . . . . . . Construction Impeded . | . . . . . . . . . . . . . . . . . . Haulers Reinforced . | . . . . . . . . . . . . . . . . . . Active Scanning Responses . | . . . . . . . . . . . . . . . . . . Cargo Convoy Interrupts . | . . . . . . . . . . . . . . . . . . Stealth | -11 -10 -9 -9 -9 -8 -8 -7 -7 -7 -6 -5 -4 -4 -4 -4 -4 -3 --------- Run | Yrd Mat Mat Min Exi Min Mat Fac Was Fac Fac Fac Fac Was Fac Upp Upp Res Distress Signals 5 | . . 1 . . . 1 . . . . 1 . . 1 . . 1 Communications Jammed . | . . . . . . . . . . . . . . . . . . Distress Signals . | . . . . . . . . . . . . . . . . . . Times Spotted 149 | . 9 10 15 . . 5 . 6 2 17 3 5 6 9 31 . 31 Peak Tracking Total 14 | . 4 4 6 . . 6 . 6 2 7 5 4 6 9 13 . 14 Tactical Retreats 24 | . 1 . 3 . . 1 . . . 2 . . . 1 11 . 5 Traps | -11 -10 -9 -9 -9 -8 -8 -7 -7 -7 -6 -5 -4 -4 -4 -4 -4 -3 ------- Run | Yrd Mat Mat Min Exi Min Mat Fac Was Fac Fac Fac Fac Was Fac Upp Upp Res Traps Triggered 4 | . 1 . . . . . 1 . . . . 1 . 1 . . . Indirectly . | . . . . . . . . . . . . . . . . . . Trap Hack Attempts . | . . . . . . . . . . . . . . . . . . Triggered . | . . . . . . . . . . . . . . . . . . Disarmed . | . . . . . . . . . . . . . . . . . . Reprogrammed . | . . . . . . . . . . . . . . . . . . Reused . | . . . . . . . . . . . . . . . . . . Traps Extracted . | . . . . . . . . . . . . . . . . . . Installed . | . . . . . . . . . . . . . . . . . . Triggered . | . . . . . . . . . . . . . . . . . . Machines | -11 -10 -9 -9 -9 -8 -8 -7 -7 -7 -6 -5 -4 -4 -4 -4 -4 -3 ---------- Run | Yrd Mat Mat Min Exi Min Mat Fac Was Fac Fac Fac Fac Was Fac Upp Upp Res Machines Disabled 1 | . . . . . . . . . . 1 . . . . . . . Max in Single Turn 1 | . . . . . . . . . . 1 . . . . . . . Machines Repaired . | . . . . . . . . . . . . . . . . . . Machines Dismantled . | . . . . . . . . . . . . . . . . . . Machines Sabotaged . | . . . . . . . . . . . . . . . . . . Overloaded Fab Kills . | . . . . . . . . . . . . . . . . . . Hacking | -11 -10 -9 -9 -9 -8 -8 -7 -7 -7 -6 -5 -4 -4 -4 -4 -4 -3 --------- Run | Yrd Mat Mat Min Exi Min Mat Fac Was Fac Fac Fac Fac Was Fac Upp Upp Res Machines Accessed 22 | . 5 2 1 1 . 5 1 . 2 2 1 . . . 1 . 1 Terminals 14 | . 5 2 . . . 4 . . 1 . 1 . . . . . 1 Fabricators . | . . . . . . . . . . . . . . . . . . Repair Stations 1 | . . . . . . . . . . 1 . . . . . . . Recycling Units 1 | . . . . . . . . . . 1 . . . . . . . Scanalyzers . | . . . . . . . . . . . . . . . . . . Garrison Access 3 | . . . . . . 1 1 . 1 . . . . . . . . Total Hacks 41 | . 11 5 1 1 . 10 1 . 2 6 2 . . . 1 . 1 Successful 17 | . 4 3 1 1 . 3 . . . 3 . . . . 1 . 1 Failed 24 | . 7 2 . . . 7 1 . 2 3 2 . . . . . . Catastrophic 3 | . 1 . . . . 1 . . . . 1 . . . . . . Database Lockouts . | . . . . . . . . . . . . . . . . . . Manual 27 | . 10 5 . 1 . 7 . . 1 . 2 . . . . . 1 Terminals 28 | . 11 5 . . . 8 . . 1 . 2 . . . . . 1 Fabricators . | . . . . . . . . . . . . . . . . . . Repair Stations 4 | . . . . . . . . . . 4 . . . . . . . Recycling Units 2 | . . . . . . . . . . 2 . . . . . . . Scanalyzers . | . . . . . . . . . . . . . . . . . . Garrison Access 4 | . . . . . . 2 1 . 1 . . . . . . . . Terminal Hacks 6 | . 1 . 1 1 . 2 . . . . . . . . 1 . . Record 1 | . . . . . . 1 . . . . . . . . . . . Open Door 2 | . . . 1 . . . . . . . . . . . 1 . . Unreport Threat 1 | . . . . . . 1 . . . . . . . . . . . Recall Reinforcements 1 | . 1 . . . . . . . . . . . . . . . . Derelict Proto ID Bank 1 | . . . . 1 . . . . . . . . . . . . . Fabricator Hacks . | . . . . . . . . . . . . . . . . . . Repair Station Hacks 2 | . . . . . . . . . . 2 . . . . . . . Scan Component 1 | . . . . . . . . . . 1 . . . . . . . Repair 1 | . . . . . . . . . . 1 . . . . . . . Recycling Unit Hacks 1 | . . . . . . . . . . 1 . . . . . . . Retrieve Components 1 | . . . . . . . . . . 1 . . . . . . . Scanalyzer . | . . . . . . . . . . . . . . . . . . Garrison Access Hacks . | . . . . . . . . . . . . . . . . . . Unauthorized Hacks 8 | . 3 3 . . . 1 . . . . . . . . . . 1 Terminals 8 | . 3 3 . . . 1 . . . . . . . . . . 1 Assimilate 1 | . . 1 . . . . . . . . . . . . . . . Botnet 7 | . 3 2 . . . 1 . . . . . . . . . . 1 Fabricators . | . . . . . . . . . . . . . . . . . . Repair Stations . | . . . . . . . . . . . . . . . . . . Recycling Units . | . . . . . . . . . . . . . . . . . . Scanalyzers . | . . . . . . . . . . . . . . . . . . Garrison Access . | . . . . . . . . . . . . . . . . . . Data Cores Recovered . | . . . . . . . . . . . . . . . . . . Used . | . . . . . . . . . . . . . . . . . . Hacking Detections 17 | . 4 2 . . . 5 1 . 2 1 1 . . . . . 1 Full Trace Events . | . . . . . . . . . . . . . . . . . . Feedback Events . | . . . . . . . . . . . . . . . . . . Feedback Blocked . | . . . . . . . . . . . . . . . . . . Robot Schematics Acquired . | . . . . . . . . . . . . . . . . . . Robots Built . | . . . . . . . . . . . . . . . . . . Authchips . | . . . . . . . . . . . . . . . . . . Time . | . . . . . . . . . . . . . . . . . . Total Robot Build Rating . | . . . . . . . . . . . . . . . . . . Part Schematics Acquired . | . . . . . . . . . . . . . . . . . . Parts Built . | . . . . . . . . . . . . . . . . . . Authchips . | . . . . . . . . . . . . . . . . . . Time . | . . . . . . . . . . . . . . . . . . Total Part Build Rating . | . . . . . . . . . . . . . . . . . . Parts Repaired 1 | . . . . . . . . . . 1 . . . . . . . Time 22 | . . . . . . . . . . 22 . . . . . . . Parts Recycled . | . . . . . . . . . . . . . . . . . . Recycled Matter . | . . . . . . . . . . . . . . . . . . Retrieved Matter . | . . . . . . . . . . . . . . . . . . Retrieved Components . | . . . . . . . . . . . . . . . . . . Parts Scanalyzed . | . . . . . . . . . . . . . . . . . . Part Schematics Acquired . | . . . . . . . . . . . . . . . . . . Parts Damaged . | . . . . . . . . . . . . . . . . . . Bothacking | -11 -10 -9 -9 -9 -8 -8 -7 -7 -7 -6 -5 -4 -4 -4 -4 -4 -3 ------------ Run | Yrd Mat Mat Min Exi Min Mat Fac Was Fac Fac Fac Fac Was Fac Upp Upp Res Used RIF Installer . | . . . . . . . . . . . . . . . . . . Robots Hacked . | . . . . . . . . . . . . . . . . . . Non-combat . | . . . . . . . . . . . . . . . . . . Combat . | . . . . . . . . . . . . . . . . . . Robot Hacks Applied . | . . . . . . . . . . . . . . . . . . Relay Couplers Released . | . . . . . . . . . . . . . . . . . . Fabnet Peak Effective % . | . . . . . . . . . . . . . . . . . . Robots Rewired . | . . . . . . . . . . . . . . . . . . Allies Hacked . | . . . . . . . . . . . . . . . . . . Hacks Repelled . | . . . . . . . . . . . . . . . . . . Allies | -11 -10 -9 -9 -9 -8 -8 -7 -7 -7 -6 -5 -4 -4 -4 -4 -4 -3 -------- Run | Yrd Mat Mat Min Exi Min Mat Fac Was Fac Fac Fac Fac Was Fac Upp Upp Res Total Allies . | . . . . . . . . . . . . . . . . . . Largest Group . | . . . . . . . . . . . . . . . . . . Highest-Rated Group . | . . . . . . . . . . . . . . . . . . Highest-Rated Ally . | . . . . . . . . . . . . . . . . . . Total Orders . | . . . . . . . . . . . . . . . . . . Ally Attacks . | . . . . . . . . . . . . . . . . . . Total Damage . | . . . . . . . . . . . . . . . . . . Kills . | . . . . . . . . . . . . . . . . . . Allies Corrupted . | . . . . . . . . . . . . . . . . . . Allies Melted . | . . . . . . . . . . . . . . . . . . Intel | -11 -10 -9 -9 -9 -8 -8 -7 -7 -7 -6 -5 -4 -4 -4 -4 -4 -3 ------- Run | Yrd Mat Mat Min Exi Min Mat Fac Was Fac Fac Fac Fac Was Fac Upp Upp Res Robot Analysis Total . | . . . . . . . . . . . . . . . . . . Derelict Logs Recovered 5 | . . . 3 . . . . . . . . . . . 2 . . Drone Launches . | . . . . . . . . . . . . . . . . . . Drone Recoveries . | . . . . . . . . . . . . . . . . . . Exploration | -11 -10 -9 -9 -9 -8 -8 -7 -7 -7 -6 -5 -4 -4 -4 -4 -4 -3 ------------- Run | Yrd Mat Mat Min Exi Min Mat Fac Was Fac Fac Fac Fac Was Fac Upp Upp Res Turns Passed 6570 | 84 602 726 1223 388 20 454 154 89 291 870 379 252 76 316 371 56 219 Spaces Moved 6299 | 52 309 275 613 240 13 390 282 126 300 872 616 434 162 339 777 110 389 Core 550 | 7 . . . . . . . . . . . . . . 268 110 165 Treads 1495 | 45 309 275 613 240 13 . . . . . . . . . . . . Legs . | . . . . . . . . . . . . . . . . . . Wheels . | . . . . . . . . . . . . . . . . . . Hover 40 | . . . . . . . . . . . . . . . . . 40 Flight 4214 | . . . . . . 390 282 126 300 872 616 434 162 339 509 . 184 Fastest Speed 30 | 50 160 160 160 160 160 50 50 50 50 42 37 37 37 37 42 50 30 Average Speed 75 | 145 160 207 164 160 160 50 50 50 50 42 37 37 37 72 44 50 41 Slowest Speed 240 | 160 160 240 240 160 160 50 50 50 50 50 37 37 37 150 150 50 60 Overloaded Moves . | . . . . . . . . . . . . . . . . . . Propulsion Burnouts . | . . . . . . . . . . . . . . . . . . Robots Hopped 9 | . . . . . . 2 1 . . 4 . . . . 1 . 1 Cave-ins Triggered 2 | . . . . . . . . . . 1 1 . . . . . . Exploration Rate (%) 34 | 4 48 29 93 61 13 25 7 89 9 20 13 5 73 8 93 18 12 Regions Visited 17 Branch Regions 5 Pre-discovered Areas 2 | . . . 2 . . . . . . . . . . . . . . Known Exits Taken 1 | . . . . . . 1 . . . . . . . . . . . Unknown Exits Taken 12 | 1 1 1 1 1 1 . . . 1 1 1 . . 1 1 1 . Scrap Searched 5 | . . . 2 . . . . . . . . . . . 3 . . Spaces Dug 60 | . . . . . . 7 . . . 16 25 12 . . . . . Terrain Destroyed 65 | . . . . . . 7 . . . 21 25 12 . . . . . Melee 53 | . . . . . . . . . . 16 25 12 . . . . . Projectile 7 | . . . . . . 7 . . . . . . . . . . . AOE 5 | . . . . . . . . . . 5 . . . . . . . Terrain Rammed . | . . . . . . . . . . . . . . . . . . Walls Destroyed . | . . . . . . . . . . . . . . . . . . Machines Disabled . | . . . . . . . . . . . . . . . . . . Actions | -11 -10 -9 -9 -9 -8 -8 -7 -7 -7 -6 -5 -4 -4 -4 -4 -4 -3 --------- Run | Yrd Mat Mat Min Exi Min Mat Fac Was Fac Fac Fac Fac Was Fac Upp Upp Res Total 7771 | 58 387 391 759 244 12 618 295 151 438 1308 701 487 176 406 785 110 445 Wait 1162 | . 58 63 109 . . 200 . 26 135 381 46 27 13 60 4 . 40 Move 6266 | 51 308 274 612 239 12 385 280 125 299 863 615 434 161 338 774 109 387 Hop 9 | . . . . . . 2 1 . . 4 . . . . 1 . 1 Pick Up 33 | 1 . 7 . 1 . 5 6 . 1 7 3 . 1 . . . 1 Fast Attach 25 | 6 2 4 2 . . . 2 . . 1 . . 1 2 1 . 4 Attach 21 | . . 1 . . . 3 . . . 8 3 3 . 1 1 . 1 Detach 3 | . . . . . . 1 . . . . . 1 . . . . 1 Swap 33 | . 1 11 . 2 . 5 1 . 3 4 2 . . 4 . . . Drop 29 | . 2 4 . 2 . 6 5 . . 5 . 2 . 1 . . 2 Fire 99 | . 16 24 32 . . 11 . . . 12 . . . . 4 . . Melee 75 | . . . . . . . . . . 23 32 20 . . . . . Ram 9 | . . . . . . . . . . . . . . . . 1 8 Kick . | . . . . . . . . . . . . . . . . . . Crush 7 | . . 3 4 . . . . . . . . . . . . . . Escape Stasis . | . . . . . . . . . . . . . . . . . . Rewire . | . . . . . . . . . . . . . . . . . . Trap . | . . . . . . . . . . . . . . . . . . Miscellaneous . | . . . . . . . . . . . . . . . . . . Route ------- -11/Scrapyard -10/Materials (discovered 2 exits: *Mat x2) -9/Materials -9/Mines (discovered 3 exits: *Mat x2 / *Exi) -9/Exiles -8/Mines -8/Materials (discovered 2 exits: *Fac x2) -7/Factory -7/Waste -7/Factory -6/Factory -5/Factory -4/Factory -4/Waste -4/Factory (discovered 2 exits: *Upp / [*Ext]) -4/Upper Caves -4/Upper Caves -3/Research History --------- Turn | Location | Event 4 | -11/Scrapyard | Discovered new exit (range 13) 85 | -11/Scrapyard | Entered Materials 167 | -10/Materials | Discovered new exit (range 16) 313 | -10/Materials | Build established: Mutant 511 | -10/Materials | Discovered new exit (range 8) 687 | -10/Materials | Entered another Materials area 687 | -9/Materials | Evolved 2 slots: Utility x2 833 | -9/Materials | Lost 3 parts (1p1u1w) 1110 | -9/Materials | Build established: Scavenger-Mutant 1198 | -9/Materials | Discovered new exit (range 13) 1413 | -9/Materials | Entered Mines 1702 | -9/Mines | Learned location of Storage (-8) 1794 | -9/Mines | Found a hidden stash of uninstalled traps 1989 | -9/Mines | Learned location of Zion (-6) 2273 | -9/Mines | Discovered new exit (range 14) 2311 | -9/Mines | Learned Materials emergency access door positions 2386 | -9/Mines | Met a Derelict who couldn't figure out how to use a Trap Extractor 2604 | -9/Mines | Discovered new exit (range 8) 2621 | -9/Mines | Learned location of 1 exit from Materials 2628 | -9/Mines | Deemed a non-threat by the Exiles lab entrance 2629 | -9/Mines | Discovered new exit (range 5) 2636 | -9/Mines | Entered Exiles 2681 | -9/Exiles | Met 8R-AWN 2710 | -9/Exiles | Met EX-HEX 2755 | -9/Exiles | Met EX-BIN 2777 | -9/Exiles | Aligned with FarCom system 2779 | -9/Exiles | Given EX-Vault access code 2820 | -9/Exiles | Opened EX-Vault 2837 | -9/Exiles | Found Flying Fortress v7 2870 | -9/Exiles | Warned to stay clear of 0b10 Research branches 2917 | -9/Exiles | Met EX-DEC 3003 | -9/Exiles | Discovered new exit (range 10) 3024 | -9/Exiles | Left Exiles lab with Flying Fortress v7 3024 | -9/Exiles | Entered Mines 3036 | -8/Mines | Discovered new exit (range 5) 3044 | -8/Mines | Entered Materials 3044 | -8/Materials | Evolved 2 slots: Propulsion x2 3045 | -8/Materials | Identified exit to Factory 3143 | -8/Materials | Build established: Mutant 3477 | -8/Materials | Discovered exit to Factory (range 10) 3498 | -8/Materials | Entered Factory 3498 | -7/Factory | Evolved 2 slots: Utility x2 3555 | -7/Factory | Discovered new exit (range 13) 3652 | -7/Factory | Sucked down chute 3652 | -7/Factory | Entered Waste 3667 | -7/Waste | EMP discharged 3669 | -7/Waste | Spotted C-40 Crusher 3672 | -7/Waste | Spotted C-40 Crusher 3672 | -7/Waste | Spotted C-40 Crusher 3706 | -7/Waste | Spotted C-40 Crusher 3711 | -7/Waste | Spotted C-40 Crusher 3717 | -7/Waste | Spotted C-40 Crusher 3736 | -7/Waste | Discovered new exit (range 12) 3741 | -7/Waste | Entered Factory 4017 | -7/Factory | Discovered new exit (range 14) 4032 | -7/Factory | Entered another Factory area 4032 | -6/Factory | Evolved 2 slots: Power x1, Propulsion x1 4578 | -6/Factory | Crushed by falling debris 4609 | -6/Factory | Lost 3 parts (1n2u) 4809 | -6/Factory | Repaired Greatsword 4897 | -6/Factory | Discovered new exit (range 13) 4902 | -6/Factory | Entered another Factory area 4902 | -5/Factory | Evolved 2 slots: Propulsion x1, Utility x1 5005 | -5/Factory | Crushed by falling debris 5272 | -5/Factory | Discovered new exit (range 11) 5281 | -5/Factory | Entered another Factory area 5281 | -4/Factory | Evolved 2 slots: Utility x2 5533 | -4/Factory | Sucked down chute 5533 | -4/Factory | Entered Waste 5548 | -4/Waste | EMP discharged 5554 | -4/Waste | Spotted C-40 Crusher 5554 | -4/Waste | Spotted C-40 Crusher 5562 | -4/Waste | Spotted C-40 Crusher 5563 | -4/Waste | Spotted C-40 Crusher 5565 | -4/Waste | Spotted C-40 Crusher 5565 | -4/Waste | Discovered new exit (range 16) 5571 | -4/Waste | Spotted C-40 Crusher 5609 | -4/Waste | Entered Factory 5651 | -4/Factory | Discovered new exit (range 12) 5919 | -4/Factory | Discovered new exit (range 10) 5925 | -4/Factory | Entered Upper Caves 6071 | -4/Upper Caves | Encountered a Warlord checkpoint 6107 | -4/Upper Caves | Attracted the attention of an 0b10 checkpoint 6163 | -4/Upper Caves | Released all parts (12) 6269 | -4/Upper Caves | Learned Research trap positions 6289 | -4/Upper Caves | Discovered new exit (range 14) 6296 | -4/Upper Caves | Entered another Upper Caves area 6349 | -4/Upper Caves | Discovered new exit (range 3) 6352 | -4/Upper Caves | Entered Research 6352 | -3/Research | Evolved 2 slots: Power x1, Utility x1 6353 | -3/Research | Loaded intel: 86 trap records 6533 | -3/Research | Core integrity fell below 50% 6552 | -3/Research | Core integrity fell below 20% 6571 | -3/Research | Destroyed by S-43 Plague with Heavy Machine Gun Last Messages --------------- reinforcements to Terminal R013. 06534_ Acquired Adv. System Shield. 06539_ Slammed into S-43 Plague. 06539_ Critical hit (Destroy). 06539_ Gravmag Array destroyed. 06542_ Slammed into S-43 Plague. 06542_ Destabilizing: System corrupted (+1). 06544_ W-44 Eye sends out distress signal. 06545_ Penetrated by Slug. 06545_ Slug penetrates Wall. 06549_ Slammed into H-77 Assassin. 06550_ Slug penetrates Wall. 06551_ Slammed into S-43 Plague. 06551_ Slug penetrates Door. 06551_ Penetrated by Slug. 06552_ Slammed into S-43 Plague. 06554_ Slug penetrates Wall. 06555_ Slammed into O-32 Director. 06560_ Slug penetrates Wall. 06560_ Adv. System Shield destroyed. Map ----- +----------------------------------------------------+ | ####### #??????????????????????????????????????? | | ####### ##?????????????????????????????????????? | | # #?????????????????????????????????????? | | # "" #?????????????????????????????????????? | | " T" #?????????????????????????????????????? | | # #?????????????????????????????????????? | | # ! #?????????????????????????????????????? | | ! ### ###?????????????????????????????????????? | | ######?# #???????????????????????????????????????? | | ???????# ####????????????????????????????????????? | | ???????# #??#####?????????????????????????????? | | ???????# #?? #?????????????????????????????? | | ######## #? #?????????????????????????????? | | # + #? #?????????????????????????????? | | #! # # #?????????????????????????????? | | # # s# #?????????????????????????????? | | # + s + #?????????????????????????????? | | # ## s########?????????????????????????????? | | # ## s ########?????????????????????????????? | | ######### s #?????????????????????????????? | | ? s #?????????????????????????????? | | #?????????????????????????????? | | #?????????????????????????????? | | ##"" """ #?????????????????????????????? | | ??"== """ #########+#???????????????????? | | ?#"F= """ ss @ +???????????????????? | | ?#""= #???????????????????? | | ?? #???????????????????? | | ? g "" #???????????????????? | | ? """""" """ #???????????????????? | | ?? """""" "" #???????????????????? | | ?????????""""" ! ""F" #???????????????????? | | ??????????? """" #???????????????????? | | ^^???????? """ #???????????????????? | | ?^???????? #???????????????????? | | ????????? ?? #???????????????????? | | ????????? ?? #???????????????????? | | ??????????#+##### "?? #???????????????????? | | ????????????????# "?? g #???????????????????? | | ????????????????# ??? #???????????????????? | | ????????????????? ??? ?????????????????????? | | ?????????????????????????????????????????????????? | | ???????????????????????????g?????????????????????? | | ???????????????????????????????????^?????????????? | | ???????????????????????????????????^?????????????? | | ???????????????????????????????????^?????????????? | | ???????????????????????????????????^?????????????? | | ???????????????????????????????????^?????????????? | | ?????????????????????????????????????????????????? | | ?????????????????????????????????????????????????? | +----------------------------------------------------+ Best States ------------- Heat Dissipation 57 Energy Generation 27 Energy Capacity 300 Matter Stores 300 Matter Capacity 300 Sight Range 20 Terrain Scan Density 10 Cloak Strength 4 Armor Coverage 525 Resistance: TH 10 Resistance: EX 25 Core Shielding 20 Propulsion Shielding 66 Utility Shielding 66 Evasion (%) 64 Targeting Accuracy 6 Recoil Reduction 2 Defensive Hacking 14 Item Schematics ----------------- None Robot Schematics ------------------ None Fabricated ------------ Nothing Alien Tech Used ----------------- None Achievements -------------- Slippery One Challenges ------------ None Game ------ Seed GammaPotentialWell Manual? 0 Play Time 01:05:47 Cumulative 28.5 hours Start 2024.09.10 @ 19:53:56 End 2024.09.10 @ 20:56:29 Sessions 1 Manual Loads 0 Difficulty Rogue Special Mode None Game No. 55 Rogue 55 Adventurer 0 Explorer 0 Win Type - Total 0 Types 0/0/0/0/0/0/0/0/0 Lore% 13 Gallery% 28 Achievement% 27 Wizard Run 0 Options --------- Layout 1 ASCII 0 Keyboard 1 Movement Numpad Keybinds 0 Fullscreen 1 Font 24/Smallcaps Map View 50x35 Zoom Use 0% Tactical HUD 1 Map Filters NONE Filters NONE Steam 1 RUN: 19295875-ba4b-42c2-8609-6c396aa33a08